fUSD/lending_fUSD_20260329
["ID","MTS","AMOUNT","RATE_DAILY","PERIOD"]
[419043413,1774803705178,256.84,0.00010158,2]
[419043415,1774803721205,300.0,0.00010499,2]
[419043416,1774803782773,300.0,0.00010499,2]
[419043417,1774803782985,150.0,0.00010499,2]
[419043418,1774803784136,300.0,0.00010499,2]
[419043419,1774803788914,165.0,9.753e-05,3]
[419043420,1774803807282,298.47,0.00010051,2]
[419043421,1774803830770,1200.0,0.00010499,2]
[419043422,1774803901143,300.0,0.00010499,2]
[419043423,1774803901183,1200.0,0.00010499,2]
[419043424,1774803907613,152.0,9.753e-05,3]
[419043425,1774803908562,152.97334481,0.000104,2]
[419043426,1774803908701,165.0,9.753e-05,3]
[419043427,1774803914575,152.97334481,0.00010499,2]
[419043428,1774803953180,3659.16,9.956e-05,2]
[419043429,1774803961223,300.0,0.00010499,2]
[419043430,1774803963177,150.0,0.00010499,2]
[419043431,1774804026850,674.47,9.874e-05,2]
[419043433,1774804057810,5216.38,8e-05,2]
[419043434,1774804057834,3356.54836767,8e-05,2]
[419043435,1774804081423,300.0,0.00010499,2]
[419043436,1774804115654,6343.46163233,0.00010499,2]
[419043437,1774804115677,322.53836767,0.00010499,2]
[419043438,1774804123971,205.0,9.8e-05,2]
[419043439,1774804127912,261.48805615,0.000101,2]
[419043440,1774804137956,1666.0,0.00010499,2]
[419043441,1774804141221,300.0,0.00010499,2]
[419043442,1774804142677,150.0,0.00010499,2]
[419043443,1774804142712,300.0,0.00010499,2]
[419043444,1774804152112,900.0,0.00010499,2]
[419043445,1774804173964,1886.333333,0.00010499,2]
[419043446,1774804198033,866.22168395,0.0001,2]
[419043447,1774804201117,300.0,0.00010499,2]
[419043448,1774804201156,1200.0,0.00010499,2]
[419043449,1774804206885,2169.9669269,9.5e-05,3]
[419043450,1774804206907,10000.01,9.5e-05,3]
[419043451,1774804206935,157683.46253325,9.5e-05,3]
[419043452,1774804208506,152.0,9.753e-05,3]
[419043461,1774804232045,-3578.98522426,0.000105,2]
[419043462,1774804232074,-740.01793856,0.000105,2]
[419043463,1774804232086,-343.32323318,0.000105,2]
[419043464,1774804232098,-665.79967857,0.000105,2]
[419043465,1774804232123,-454.55387908,0.000105,2]
[419043466,1774804232136,-8303.53754635,0.000105,2]
[419043467,1774804232146,-500.0,0.000105,2]
[419043468,1774804232157,-500.0,0.000105,2]
[419043469,1774804232168,-189.46597325,0.000105,2]
[419043470,1774804232177,-154.00708367,0.000105,2]
[419043471,1774804232186,-1100.0,0.000105,3]
[419043472,1774804232196,-522.86303018,0.000105,2]
[419043473,1774804232206,-2500.0,0.000105,2]
[419043474,1774804232216,-5268.6384,0.000105,2]
[419043475,1774804232226,-250.0,0.000105,2]
[419043476,1774804232236,-5000.0,0.00010509,2]
[419043477,1774804232247,-150.0,0.00010536,2]
[419043478,1774804232257,-5000.0,0.0001054,2]
[419043479,1774804232267,-3066.08511856,0.0001054,2]
[419043480,1774804232276,-500.0,0.00010573,2]
[419043481,1774804232287,-500.0,0.00010573,2]
[419043482,1774804232297,-500.0,0.00010573,2]
[419043483,1774804232307,-500.0,0.00010573,2]
[419043484,1774804232318,-625.51312446,0.00010573,2]
[419043485,1774804232328,-500.0,0.00010573,2]
[419043486,1774804232338,-500.0,0.00010573,2]
[419043487,1774804232348,-500.0,0.00010573,2]
[419043488,1774804232358,-500.0,0.00010573,2]
[419043489,1774804232368,-500.0,0.00010573,2]
[419043490,1774804232377,-500.0,0.00010573,2]
[419043491,1774804232386,-169.92418884,0.00010573,2]
[419043492,1774804232396,-500.0,0.00010573,2]
[419043493,1774804232406,-500.0,0.00010573,2]
[419043494,1774804232416,-500.0,0.00010573,2]
[419043495,1774804232425,-500.0,0.00010573,2]
[419043496,1774804232435,-500.0,0.00010573,2]
[419043497,1774804232444,-500.44548801,0.00010573,2]
[419043498,1774804232453,-335.72179077,0.00010573,2]
[419043499,1774804232462,-500.22919119,0.00010573,2]
[419043500,1774804232471,-500.0,0.00010573,2]
[419043501,1774804232481,-150.0,0.00010574,2]
[419043502,1774804232490,-150.0,0.00010574,2]
[419043503,1774804232499,-194.65430371,0.00010574,2]
[419043504,1774804232509,-192.492138,0.00010588,2]
[419043505,1774804232518,-327.87290903,0.0001059,2]
[419043506,1774804232527,-500.0,0.00010594,2]
[419043507,1774804232536,-500.0,0.00010594,2]
[419043508,1774804232545,-500.0,0.00010594,2]
[419043509,1774804232555,-500.0,0.00010594,2]
[419043510,1774804232565,-500.0,0.00010594,2]
[419043511,1774804232575,-500.0,0.00010594,2]
[419043512,1774804232585,-500.0,0.00010594,2]
[419043513,1774804232594,-200.0,0.00010594,2]
[419043514,1774804232603,-500.0,0.00010594,2]
[419043515,1774804232614,-500.0,0.00010594,2]
[419043516,1774804232624,-500.0,0.00010594,2]
[419043517,1774804232633,-500.0,0.00010594,2]
[419043518,1774804232643,-151.0,0.00010594,2]
[419043519,1774804232652,-151.0,0.00010594,2]
[419043520,1774804232662,-151.0,0.00010594,2]
[419043521,1774804232672,-151.0,0.00010594,2]
[419043522,1774804232682,-151.0,0.00010594,2]
[419043523,1774804232691,-151.0,0.00010594,2]
[419043524,1774804232701,-151.0,0.00010594,2]
[419043525,1774804232711,-500.0,0.00010594,2]
[419043526,1774804232720,-151.0,0.00010594,2]
[419043527,1774804232730,-151.0,0.00010594,2]
[419043528,1774804232739,-500.0,0.00010594,2]
[419043529,1774804232748,-151.0,0.00010594,2]
[419043530,1774804232757,-500.0,0.00010594,2]
[419043531,1774804232767,-151.0,0.00010594,2]
[419043532,1774804232776,-500.0,0.00010594,2]
[419043533,1774804232786,-500.0,0.00010594,2]
[419043534,1774804232795,-500.0,0.00010594,2]
[419043535,1774804232805,-500.0,0.00010594,2]
[419043536,1774804232814,-500.0,0.00010594,2]
[419043537,1774804232824,-500.0,0.00010594,2]
[419043538,1774804232834,-500.0,0.00010594,2]
[419043539,1774804232843,-500.0,0.00010594,2]
[419043540,1774804232853,-151.0,0.00010594,2]
[419043541,1774804232863,-1386.78395259,0.00010594,2]
[419043542,1774804232872,-151.0,0.00010594,2]
[419043543,1774804232882,-1041.84886251,0.00010599,2]
[419043544,1774804232895,-4961.05799466,0.00010599,2]
[419043545,1774804232904,-2000.0,0.00010599,2]
[419043546,1774804232914,-500.0,0.00010599,2]
[419043547,1774804232923,-500.0,0.00010599,2]
[419043548,1774804232933,-500.0,0.00010599,2]
[419043549,1774804232943,-500.0,0.00010599,2]
[419043550,1774804232952,-167.478325,0.00010599,2]
[419043551,1774804232962,-219.01564675,0.00010599,2]
[419043552,1774804232973,-500.0,0.00010599,2]
[419043553,1774804232982,-500.0,0.00010599,2]
[419043554,1774804232992,-608.38386471,0.00010599,2]
[419043555,1774804233001,-500.0,0.00010599,2]
[419043556,1774804233011,-158.81213272,0.00010599,2]
[419043557,1774804233022,-500.0,0.00010599,2]
[419043558,1774804233032,-500.0,0.00010599,2]
[419043559,1774804233041,-500.0,0.00010599,2]
[419043560,1774804233051,-500.0,0.00010599,2]
[419043561,1774804233061,-500.0,0.00010599,2]
[419043562,1774804233071,-457.63300354,0.00010599,2]
[419043563,1774804233083,-42.36699646,0.00010599,2]
[419043564,1774804233093,-500.0,0.00010599,2]
[419043565,1774804233103,-500.0,0.00010599,2]
[419043566,1774804233113,-500.0,0.00010599,2]
[419043567,1774804233124,-500.0,0.00010599,2]
[419043568,1774804233134,-500.0,0.00010599,2]
[419043569,1774804233143,-500.0,0.00010599,2]
[419043570,1774804233154,-500.0,0.00010599,2]
[419043571,1774804233164,-500.0,0.00010599,2]
[419043572,1774804233175,-500.0,0.00010599,2]
[419043573,1774804233185,-500.0,0.00010599,2]
[419043574,1774804233195,-208.9606564,0.00010599,2]
[419043575,1774804233204,-500.0,0.00010599,2]
[419043576,1774804233214,-279.65353722,0.00010599,2]
[419043586,1774804237932,-220.34646278,0.00010599,2]
[419043587,1774804237942,-500.0,0.00010599,2]
[419043588,1774804237951,-500.0,0.00010599,2]
[419043589,1774804237960,-218.4449666,0.00010599,2]
[419043590,1774804238323,-281.5550334,0.00010599,2]
[419043591,1774804238333,-500.0,0.00010599,2]
[419043592,1774804238343,-500.0,0.00010599,2]
[419043593,1774804238352,-500.0,0.00010599,2]
[419043594,1774804238363,-500.0,0.00010599,2]
[419043595,1774804238372,-500.0,0.00010599,2]
[419043596,1774804238388,-500.0,0.00010599,2]
[419043597,1774804238398,-500.0,0.00010599,2]
[419043598,1774804238408,-500.0,0.00010599,2]
[419043599,1774804238418,-500.0,0.00010599,2]
[419043600,1774804238428,-500.0,0.00010599,2]
[419043601,1774804238439,-500.0,0.00010599,2]
[419043602,1774804238449,-500.0,0.00010599,2]
[419043603,1774804238459,-500.0,0.00010599,2]
[419043604,1774804238469,-500.0,0.00010599,2]
[419043605,1774804238479,-622.49934429,0.00010599,2]
[419043606,1774804238489,-500.0,0.00010599,2]
[419043607,1774804238498,-500.0,0.00010599,2]
[419043608,1774804238508,-500.0,0.00010599,2]
[419043609,1774804238518,-500.0,0.00010599,2]
[419043610,1774804238527,-500.0,0.00010599,2]
[419043611,1774804238537,-500.0,0.00010599,2]
[419043612,1774804238547,-500.0,0.00010599,2]
[419043613,1774804238556,-500.0,0.00010599,2]
[419043614,1774804238565,-500.0,0.00010599,2]
[419043615,1774804238575,-500.0,0.00010599,2]
[419043616,1774804238585,-500.0,0.00010599,2]
[419043618,1774804238594,-217.85549345,0.00010599,2]
[419043619,1774804238604,-500.0,0.00010599,2]
[419043620,1774804238613,-500.0,0.00010599,2]
[419043621,1774804238622,-500.0,0.00010599,2]
[419043622,1774804238631,-500.0,0.00010599,2]
[419043623,1774804238641,-500.0,0.00010599,2]
[419043624,1774804238650,-500.0,0.00010599,2]
[419043625,1774804238659,-500.0,0.00010599,2]
[419043626,1774804238669,-500.0,0.00010599,2]
[419043627,1774804238678,-500.0,0.00010599,2]
[419043628,1774804238688,-500.0,0.00010599,2]
[419043629,1774804238698,-500.0,0.00010599,2]
[419043630,1774804238708,-500.0,0.00010599,2]
[419043631,1774804238718,-500.0,0.00010599,2]
[419043632,1774804238728,-500.0,0.00010599,2]
[419043633,1774804238737,-500.0,0.00010599,2]
[419043634,1774804238746,-500.0,0.00010599,2]
[419043635,1774804238756,-500.0,0.00010599,2]
[419043636,1774804238765,-500.0,0.00010599,2]
[419043637,1774804238775,-200.0,0.00010599,2]
[419043638,1774804238784,-500.0,0.00010599,2]
[419043639,1774804238794,-500.0,0.00010599,2]
[419043640,1774804238804,-500.0,0.00010599,2]
[419043641,1774804238814,-500.0,0.00010599,2]
[419043642,1774804238823,-500.0,0.00010599,2]
[419043643,1774804238833,-2142631.47074188,0.000106,2]
[419043644,1774804238843,-768.73944594,0.000106,2]
[419043645,1774804238852,-1751.82507383,0.000106,2]
[419043646,1774804238862,-4999.99,0.000106,2]
[419043647,1774804238872,-2115.96,0.000106,2]
[419043648,1774804238883,-9999.99,0.000106,2]
[419043649,1774804238899,-9999.99,0.000106,2]
[419043650,1774804238908,-120720.9131575,0.000106,2]
[419043651,1774804238919,-14101.42,0.000106,2]
[419043652,1774804238928,-9999.99,0.000106,2]
[419043653,1774804238938,-871.8910996,0.000106,2]
[419043654,1774804238947,-258.09544847,0.000106,2]
[419043655,1774804238957,-2300.0,0.000106,3]
[419043656,1774804238967,-44509.08,0.0001065,2]
[419043657,1774804238976,-9999.99,0.0001065,2]
[419043658,1774804238986,-1445.37,0.000107,2]
[419043659,1774804238997,-2997.56,0.000107,2]
[419043660,1774804239008,-1548.82,0.000107,2]
[419043661,1774804239020,-999.99,0.000107,2]
[419043662,1774804239031,-5081.68,0.000107,2]
[419043663,1774804239042,-150.99,0.000107,2]
[419043664,1774804239052,-150.99,0.000107,2]
[419043665,1774804239063,-77037.16,0.000107,2]
[419043666,1774804239073,-354.69,0.000107,2]
[419043667,1774804239082,-3400.0,0.000107,3]
[419043668,1774804239094,-256.84,0.00010723,2]
[419043669,1774804239104,-4600.0,0.000108,3]
[419043670,1774804239113,-500.0,0.00010873,2]
[419043671,1774804239123,-886.0,0.00010878,2]
[419043672,1774804239133,-166.66,0.0001088,2]
[419043673,1774804239143,-1980.0,0.00010899,2]
[419043674,1774804239154,-5800.0,0.000109,3]
[419043675,1774804239164,-7870.11040463,0.000109,2]
[419043676,1774804239174,-208.92177146,0.0001092,2]
[419043677,1774804239185,-1243.0,0.00010921,2]
[419043678,1774804239195,-1657.0,0.00010933,2]
[419043679,1774804239205,-296.0,0.00010943,2]
[419043680,1774804239215,-1446.0,0.00010955,2]
[419043681,1774804239224,-500.0,0.00010959,2]
[419043682,1774804239234,-150.0,0.00010959,2]
[419043683,1774804239244,-151.0,0.00010961,2]
[419043684,1774804239254,-1566.0,0.00010976,2]
[419043685,1774804239264,-1257.0,0.00010998,2]
[419043686,1774804239275,-1059.41082083,0.00010999,2]
[419043687,1774804239284,-626.0,0.0001102,2]
[419043688,1774804239295,-1517.0,0.00011042,2]
[419043689,1774804239305,-1897.0,0.00011064,2]
[419043690,1774804239315,-1000.0,0.00011065,2]
[419043691,1774804239325,-1209.0,0.00011068,2]
[419043692,1774804239336,-152.0,0.00011068,2]
[419043693,1774804239345,-260.0,0.00011091,2]
[419043694,1774804239356,-42720.38305909,0.00011099,2]
[419043695,1774804239365,-42720.38305904,0.00011099,2]
[419043696,1774804239375,-48122.20028251,0.00011099,2]
[419043697,1774804239386,-48122.20028249,0.00011099,2]
[419043698,1774804239395,-1000.0,0.00011121,2]
[419043699,1774804239406,-197.01734564,0.00011121,2]
[419043700,1774804239416,-1000.0,0.00011121,2]
[419043701,1774804239426,-1045.4146401,0.00011121,2]
[419043702,1774804239437,-1000.0,0.00011121,2]
[419043703,1774804239447,-1000.0,0.00011121,2]
[419043704,1774804239458,-1000.0,0.00011121,2]
[419043705,1774804239467,-1000.0,0.00011121,2]
[419043706,1774804239477,-1002.6541819,0.00011121,2]
[419043707,1774804239487,-1000.0,0.00011121,2]
[419043708,1774804239498,-454.80496102,0.00011121,2]
[419043709,1774804239508,-1000.0,0.00011121,2]
[419043710,1774804239518,-1000.0,0.00011121,2]
[419043711,1774804239528,-1000.0,0.00011121,2]
[419043712,1774804239538,-1000.0,0.00011121,2]
[419043713,1774804239549,-200.0,0.00011142,2]
[419043714,1774804239559,-1438.09495884,0.00011142,2]
[419043715,1774804239568,-154.08581197,0.00011142,2]
[419043716,1774804239579,-500.0,0.00011147,2]
[419043717,1774804239589,-150.0,0.00011153,2]
[419043718,1774804239599,-166.66,0.0001124,2]
[419043719,1774804239608,-7870.11040457,0.00011271,2]
[419043720,1774804239618,-256.84,0.00011287,2]
[419043721,1774804239628,-48122.20028249,0.0001133,2]
[419043722,1774804239638,-500.0,0.00011421,2]
[419043723,1774804239648,-255.0,0.00011528,2]
[419043724,1774804239658,-371.58,0.00011537,2]
[419043725,1774804239668,-420.0,0.00011543,2]
[419043726,1774804239678,-1680.0,0.00011549,2]
[419043727,1774804239687,-2750.6,0.0001155,2]
[419043728,1774804239696,-2750.6,0.0001155,2]
[419043729,1774804239706,-2750.6,0.0001155,2]
[419043730,1774804239716,-2750.6,0.0001155,2]
[419043731,1774804239726,-2750.6,0.0001155,2]
[419043732,1774804239735,-2750.6,0.0001155,2]
[419043733,1774804239745,-2750.6,0.0001155,2]
[419043734,1774804239755,-2750.6,0.0001155,2]
[419043735,1774804239764,-2750.6,0.0001155,2]
[419043736,1774804239774,-260.74095275,0.0001155,2]
[419043737,1774804239784,-165.56177113,0.0001155,2]
[419043738,1774804239794,-5000.0,0.0001155,2]
[419043739,1774804239805,-250.0,0.0001155,2]
[419043740,1774804239815,-300.82462869,0.0001155,2]
[419043741,1774804239825,-1118.89290445,0.0001155,2]
[419043742,1774804239834,-250.0,0.0001155,2]
[419043743,1774804239845,-166.66,0.00011599,2]
[419043744,1774804239855,-886.01505148,0.00011668,2]
[419043745,1774804239866,-551.21950508,0.00011668,2]
[419043746,1774804239875,-1500.0,0.00011668,2]
[419043747,1774804239885,-200.06015101,0.00011668,2]
[419043748,1774804239895,-1500.0,0.00011668,2]
[419043749,1774804239904,-1500.0,0.00011668,2]
[419043750,1774804239914,-1500.0,0.00011668,2]
[419043751,1774804239924,-1500.0,0.00011668,2]
[419043752,1774804239934,-1003.28384066,0.00011668,2]
[419043753,1774804239944,-1500.0,0.00011668,2]
[419043754,1774804239953,-200.0,0.0001169,2]
[419043755,1774804239963,-1491.30447232,0.0001169,2]
[419043756,1774804239973,-42720.38305904,0.00011692,2]
[419043757,1774804239983,-500.0,0.00011695,2]
[419043758,1774804239993,-48122.20028249,0.00011745,2]
[419043763,1774804240447,-150.0,0.000118,2]
[419043764,1774804240458,-120720.9131575,0.00011836,2]
[419043765,1774804240468,-256.84,0.00011851,2]
[419043766,1774804240478,-1000.0,0.00011903,2]
[419043767,1774804240487,-166.66,0.00011958,2]
[419043768,1774804240502,-500.0,0.00011969,2]
[419043769,1774804240511,-7093.2976499,0.00012,7]
[419043770,1774804240521,-1017.27,0.0001203,2]
[419043771,1774804240531,-7870.11040457,0.00012043,2]
[419043772,1774804240540,-2922.6,0.00012055,2]
[419043773,1774804240550,-20710.18,0.00012087,2]
[419043774,1774804240559,-9999.99,0.00012087,2]
[419043775,1774804240569,-48122.20028249,0.0001216,2]
[419043776,1774804240579,-500.0,0.00012216,2]
[419043777,1774804240588,-2000.0,0.00012216,2]
[419043778,1774804240598,-2000.0,0.00012216,2]
[419043779,1774804240607,-2000.0,0.00012216,2]
[419043780,1774804240616,-2000.0,0.00012216,2]
[419043781,1774804240625,-2000.0,0.00012216,2]
[419043782,1774804240635,-200.0,0.00012238,2]
[419043783,1774804240644,-489.28276431,0.00012238,2]
[419043784,1774804240654,-42720.38305904,0.00012288,2]
[419043785,1774804240663,-166.66,0.00012317,2]
[419043786,1774804240672,-256.84,0.00012416,2]
[419043787,1774804240682,-48122.20028249,0.00012574,2]
[419043788,1774804240691,-433.0,0.00012662,2]
[419043789,1774804240700,-166.66,0.00012676,2]
[419043790,1774804240710,-587.0,0.00012691,2]
[419043791,1774804240720,-2351.0,0.00012704,2]
[419043792,1774804240729,-500.0,0.00012764,2]
[419043793,1774804240739,-2500.0,0.00012764,2]
[419043794,1774804240748,-1500.0,0.00012764,2]
[419043795,1774804240758,-2500.0,0.00012764,2]
[419043796,1774804240768,-2500.0,0.00012764,2]
[419043797,1774804240778,-200.0,0.00012786,2]
[419043798,1774804240788,-2838.88167,0.0001281,2]
[419043799,1774804240797,-1191.13362,0.0001281,2]
[419043800,1774804240807,-322.172948,0.0001281,2]
[419043801,1774804240816,-193.816225,0.0001281,2]
[419043802,1774804240826,-513.452554,0.0001281,2]
[419043803,1774804240836,-385.089416,0.0001281,2]
[419043804,1774804240846,-7870.11040457,0.00012814,2]
[419043805,1774804240856,-152.0,0.00012851,3]
[419043806,1774804240866,-42720.38305904,0.00012884,2]
[419043807,1774804240875,-256.84,0.0001298,2]
[419043808,1774804240884,-48122.20028249,0.00012989,2]
[419043809,1774804240894,-250.0,0.00013,2]
[419043810,1774804240903,-8016.115094,0.00013046,2]
[419043811,1774804240913,-120720.9131575,0.00013072,2]
[419043812,1774804240923,-150.0,0.00013111,2]
[419043813,1774804240933,-272.177711,0.00013112,2]
[419043814,1774804240943,-1000.0,0.00013181,2]
[419043815,1774804240953,-196.8828,0.000132,2]
[419043816,1774804240963,-522.86303016,0.00013229,2]
[419043817,1774804240972,-3000.0,0.00013312,2]
[419043818,1774804240981,-3000.0,0.00013312,2]
[419043819,1774804240991,-3000.0,0.00013312,2]
[419043820,1774804241000,-151.0,0.00013333,2]
[419043821,1774804241010,-200.0,0.00013334,2]
[419043822,1774804241020,-327.87290903,0.00013394,2]
[419043823,1774804241029,-48122.20028249,0.00013404,2]
[419043824,1774804241039,-208.92177146,0.0001341,2]
[419043825,1774804241049,-277.753888,0.00013424,2]
[419043826,1774804241058,-151.0,0.00013443,5]
[419043827,1774804241068,-1059.41082083,0.0001345,2]
[419043828,1774804241078,-42720.38305904,0.00013479,2]
[419043829,1774804241088,-1000.0,0.000135,2]
[419043830,1774804241098,-256.84,0.00013544,2]
[419043831,1774804241107,-7870.11040457,0.00013586,2]
[419043832,1774804241117,-500.0,0.00013698,2]
[419043833,1774804241127,-504.98451162,0.00013698,2]
[419043834,1774804241136,-500.0,0.00013698,2]
[419043835,1774804241146,-500.0,0.00013698,2]
[419043836,1774804241156,-500.0,0.00013698,2]
[419043837,1774804241166,-500.0,0.00013698,2]
[419043838,1774804241175,-500.0,0.00013698,2]
[419043839,1774804241185,-279.07,0.00013698,2]
[419043840,1774804241194,-500.0,0.00013698,2]
[419043841,1774804241203,-500.0,0.00013698,2]
[419043842,1774804241213,-500.0,0.00013698,2]
[419043843,1774804241222,-600.87743374,0.00013698,2]
[419043844,1774804241232,-500.0,0.00013698,2]
[419043845,1774804241241,-527.56,0.00013698,2]
[419043846,1774804241250,-500.0,0.00013698,2]
[419043847,1774804241259,-500.0,0.00013698,2]
[419043848,1774804241269,-500.0,0.00013698,2]
[419043849,1774804241279,-500.0,0.00013698,2]
[419043850,1774804241288,-500.0,0.00013698,2]
[419043851,1774804241297,-167.84,0.00013698,2]
[419043852,1774804241307,-500.0,0.00013698,2]
[419043853,1774804241316,-500.0,0.00013698,2]
[419043854,1774804241326,-500.0,0.00013698,2]
[419043855,1774804241336,-500.0,0.00013698,2]
[419043856,1774804241345,-500.0,0.00013698,2]
[419043857,1774804241355,-500.0,0.00013698,2]
[419043858,1774804241364,-500.0,0.00013698,2]
[419043859,1774804241373,-583.31180057,0.00013698,2]
[419043860,1774804241382,-500.0,0.00013698,2]
[419043861,1774804241391,-500.0,0.00013698,2]
[419043862,1774804241401,-500.0,0.00013698,2]
[419043863,1774804241410,-500.0,0.00013698,2]
[419043864,1774804241420,-500.0,0.00013698,2]
[419043865,1774804241429,-500.0,0.00013698,2]
[419043866,1774804241439,-500.0,0.00013698,2]
[419043867,1774804241448,-500.0,0.00013698,2]
[419043868,1774804241457,-500.0,0.00013698,2]
[419043869,1774804241467,-500.0,0.00013698,2]
[419043870,1774804241476,-500.0,0.00013698,2]
[419043871,1774804241486,-500.0,0.00013698,2]
[419043872,1774804241496,-500.0,0.00013698,2]
[419043873,1774804241505,-500.0,0.00013698,2]
[419043874,1774804241515,-500.0,0.00013698,2]
[419043875,1774804241524,-500.0,0.00013698,2]
[419043876,1774804241533,-500.0,0.00013698,2]
[419043877,1774804241543,-500.0,0.00013698,2]
[419043878,1774804241552,-500.0,0.00013698,2]
[419043879,1774804241561,-500.0,0.00013698,2]
[419043880,1774804241570,-500.0,0.00013698,2]
[419043881,1774804241580,-500.0,0.00013698,2]
[419043882,1774804241589,-500.0,0.00013698,2]
[419043883,1774804241599,-500.0,0.00013698,2]
[419043884,1774804241608,-500.0,0.00013698,2]
[419043885,1774804241618,-500.0,0.00013698,2]
[419043886,1774804241627,-502.60327591,0.00013698,2]
[419043887,1774804241636,-500.0,0.00013698,2]
[419043888,1774804241646,-500.0,0.00013698,2]
[419043889,1774804241656,-500.0,0.00013698,2]
[419043890,1774804241665,-500.0,0.00013698,2]
[419043891,1774804241675,-500.0,0.00013698,2]
[419043892,1774804241685,-616.44,0.00013698,2]
[419043893,1774804241694,-500.0,0.00013698,2]
[419043894,1774804241703,-500.0,0.00013698,2]
[419043895,1774804241712,-500.0,0.00013698,2]
[419043896,1774804241722,-476.77743701,0.00013698,2]
[419043897,1774804241732,-500.0,0.00013698,2]
[419043898,1774804241741,-500.0,0.00013698,2]
[419043899,1774804241751,-161.59374025,0.00013698,2]
[419043900,1774804241760,-500.0,0.00013698,2]
[419043901,1774804241770,-500.0,0.00013698,2]
[419043902,1774804241779,-500.0,0.00013698,2]
[419043903,1774804241788,-500.0,0.00013698,2]
[419043904,1774804241798,-500.0,0.00013698,2]
[419043905,1774804241807,-500.0,0.00013698,2]
[419043906,1774804241817,-500.0,0.00013698,2]
[419043907,1774804241826,-381.48037858,0.00013698,2]
[419043908,1774804241836,-500.0,0.00013698,2]
[419043909,1774804241846,-500.0,0.00013698,2]
[419043910,1774804241855,-500.0,0.00013698,2]
[419043911,1774804241864,-500.0,0.00013698,2]
[419043912,1774804241874,-507.40101098,0.00013698,2]
[419043913,1774804241883,-500.0,0.00013698,2]
[419043914,1774804241892,-500.0,0.00013698,2]
[419043915,1774804241902,-500.0,0.00013698,2]
[419043916,1774804241911,-500.0,0.00013698,2]
[419043917,1774804241921,-500.0,0.00013698,2]
[419043918,1774804241930,-500.0,0.00013698,2]
[419043919,1774804241939,-2228.88,0.00013699,2]
[419043920,1774804241949,-500.0,0.00013699,2]
[419043921,1774804241958,-395.74377257,0.00013699,2]
[419043922,1774804241967,-500.0,0.00013699,2]
[419043923,1774804241977,-500.0,0.00013699,2]
[419043924,1774804241987,-500.0,0.00013699,2]
[419043925,1774804241996,-500.0,0.00013699,2]
[419043926,1774804242005,-500.0,0.00013699,2]
[419043927,1774804242014,-500.0,0.00013699,2]
[419043928,1774804242024,-500.0,0.00013699,2]
[419043929,1774804242033,-286.26486585,0.00013699,2]
[419043930,1774804242043,-500.0,0.00013699,2]
[419043931,1774804242052,-403.83679365,0.00013699,2]
[419043932,1774804242062,-500.0,0.00013699,2]
[419043933,1774804242071,-500.0,0.00013699,2]
[419043934,1774804242080,-500.0,0.00013699,2]
[419043935,1774804242089,-549.5046014,0.00013699,2]
[419043936,1774804242098,-500.0,0.00013699,2]